bitfinex-derivatives/quotes_BTCF0:USTF0_20260315
["timestamp","ask_amount","ask_price","bid_price","bid_amount"]
[1773618536705,0.2083398,72686.0,72667.0,0.43992632]
[1773618536706,0.041267,72686.0,72667.0,0.43992632]
[1773618536905,0.041267,72686.0,72666.0,0.0014]
[1773618536906,0.041268,72685.0,72671.0,0.48120132]
[1773618537510,0.041268,72685.0,72672.0,0.0014]
[1773618537704,0.041268,72685.0,72671.0,0.43992632]
[1773618537906,0.041268,72685.0,72673.0,0.0014]
[1773618538305,0.00344,72689.0,72678.0,0.041271]
[1773618538505,0.041262,72694.0,72674.0,0.43992632]
[1773618539023,0.041263,72693.0,72674.0,0.43992632]
[1773618539411,0.45681635,72704.0,72682.0,0.041269]
[1773618539610,0.20774822,72703.0,72684.0,0.48119432]
[1773618539814,0.041262,72696.0,72685.0,0.44132632]
[1773618540118,0.041262,72695.0,72686.0,0.0014]
[1773618541017,0.041247,72722.0,72686.0,0.0014]
[1773618541018,0.45821635,72713.0,72689.0,0.43992632]
[1773618541205,0.45681635,72711.0,72689.0,0.43992632]
[1773618541404,0.66463913,72710.0,72689.0,0.43992632]
[1773618541606,0.041247,72722.0,72689.0,0.43992632]
[1773618541607,0.041256,72705.0,72689.0,0.43992632]
[1773618541820,0.45681635,72703.0,72690.0,0.0014]
[1773618542112,0.45681635,72703.0,72691.0,0.0014]
[1773618542320,0.45681635,72703.0,72692.0,0.0014]
[1773618542520,0.00336,72702.0,72693.0,0.0014]
[1773618542717,0.041263,72694.0,72682.0,0.0014]
[1773618542918,0.00336,72702.0,72683.0,0.43992632]
[1773618543415,0.00336,72702.0,72691.0,0.48118932]
[1773618543614,0.00336,72702.0,72693.0,0.43992632]
[1773618543811,0.041254,72709.0,72695.0,0.041261]
[1773618544015,0.041254,72709.0,72695.0,0.48118732]
[1773618544223,0.041255,72708.0,72695.0,0.48118732]
[1773618544920,0.041255,72708.0,72694.0,0.0014]
[1773618544921,0.61627966,72754.0,72699.0,0.43992632]
[1773618544922,0.041247,72722.0,72699.0,0.43992632]
[1773618545118,0.24905628,72721.0,72695.0,0.43992632]
[1773618545310,0.041248,72720.0,72695.0,0.43992632]
[1773618545516,0.45681635,72725.0,72702.0,0.041258]
[1773618545715,0.45681635,72723.0,72702.0,0.041258]
[1773618545915,0.04125,72716.0,72702.0,0.041258]
[1773618546127,0.00321,72722.0,72696.0,0.0014]
[1773618546128,0.041248,72719.0,72704.0,0.041256]
[1773618546322,0.00321,72722.0,72705.0,0.0014]
[1773618546505,0.041248,72720.0,72706.0,0.041255]
[1773618546710,0.00321,72722.0,72705.0,0.0014]
[1773618547316,0.001,72720.0,72705.0,0.0014]
[1773618547824,0.041248,72719.0,72705.0,0.042655]
[1773618548414,0.041248,72719.0,72705.0,0.48258132]
[1773618548813,0.46002635,72722.0,72700.0,0.43992632]
[1773618549023,0.45681635,72721.0,72701.0,0.0014]
[1773618549320,0.041252,72712.0,72702.0,0.0014]
[1773618549521,0.041252,72712.0,72703.0,0.0014]
[1773618550123,0.45681635,72721.0,72703.0,0.0014]
[1773618550321,0.04125,72716.0,72703.0,0.48258332]
[1773618550617,0.041252,72712.0,72703.0,0.0014]
[1773618551023,0.041251,72714.0,72703.0,0.0014]
[1773618551319,0.041251,72715.0,72703.0,0.0014]
[1773618552215,0.041249,72718.0,72704.0,0.041256]
[1773618552409,0.041249,72718.0,72703.0,0.44132632]
[1773618552410,0.00321,72722.0,72703.0,0.0014]
[1773618552613,0.041243,72728.0,72714.0,0.43992632]
[1773618552813,0.041243,72728.0,72715.0,0.0014]
[1773618553010,0.041244,72727.0,72715.0,0.0014]
[1773618553211,0.041244,72726.0,72715.0,0.0014]
[1773618554321,0.041245,72725.0,72715.0,0.0014]
[1773618555518,0.45681635,72730.0,72715.0,0.0014]
[1773618555719,0.041246,72723.0,72715.0,0.0014]
[1773618555921,0.041246,72724.0,72715.0,0.0014]
[1773618558324,0.00068746,72731.0,72715.0,0.0014]
[1773618558325,0.041246,72723.0,72715.0,0.0014]
[1773618558520,0.041247,72721.0,72715.0,0.0014]
[1773618559226,0.041246,72723.0,72715.0,0.0014]
[1773618560825,0.45681635,72727.0,72715.0,0.0014]
[1773618561818,0.04125,72716.0,72696.0,0.43992632]
[1773618562024,0.04125,72716.0,72704.0,0.041256]
[1773618562326,0.041249,72719.0,72705.0,0.042656]
[1773618562519,0.041249,72719.0,72706.0,0.0014]
[1773618562715,0.041249,72719.0,72705.0,0.041256]
[1773618562914,0.041249,72719.0,72706.0,0.0014]
[1773618563115,0.041249,72717.0,72706.0,0.0014]
[1773618563315,0.041249,72717.0,72709.0,0.00362]
[1773618563719,0.45681635,72721.0,72709.0,0.00362]
[1773618563917,0.45855591,72719.0,72693.0,0.041262]
[1773618564228,0.45855591,72719.0,72685.0,0.30268]
[1773618564229,0.041255,72708.0,72694.0,0.042662]
[1773618564527,0.041249,72717.0,72705.0,0.50362991]
[1773618564741,0.00068746,72731.0,72706.0,0.46377391]
[1773618564924,0.00068746,72731.0,72691.0,0.57271502]
[1773618564925,0.45855591,72729.0,72707.0,0.46377391]
[1773618565126,0.45855591,72729.0,72708.0,0.0014]
[1773618565521,0.19892907,72728.0,72708.0,0.0014]
[1773618565828,0.04125,72716.0,72708.0,0.0014]
[1773618566319,0.041251,72715.0,72703.0,0.46237391]
[1773618566525,0.041251,72715.0,72704.0,0.0014]
[1773618566833,0.041249,72717.0,72703.0,0.50363091]
[1773618567032,0.041249,72717.0,72704.0,0.0014]
[1773618567333,0.041249,72717.0,72705.0,0.0014]
[1773618567531,0.041248,72719.0,72705.0,0.0014]
[1773618567917,0.041249,72718.0,72705.0,0.0014]
[1773618568122,0.041249,72718.0,72706.0,0.00362]
[1773618568323,0.041249,72717.0,72706.0,0.00362]
[1773618570030,0.45855591,72719.0,72707.0,0.0014]
[1773618570331,0.0014,72727.0,72707.0,0.0014]
[1773618570332,0.041254,72709.0,72707.0,0.0014]
[1773618571035,0.041254,72709.0,72708.0,0.0014]
[1773618571231,0.42085881,72709.0,72696.0,0.041261]
[1773618571429,0.42085881,72709.0,72697.0,0.0014]
[1773618571935,0.42085881,72709.0,72705.0,0.00362]
[1773618572133,0.42085881,72709.0,72706.0,0.0014]
[1773618572644,0.45855591,72713.0,72706.0,0.0014]
[1773618572645,0.45855591,72725.0,72706.0,0.0014]
[1773618572830,0.19948001,72724.0,72706.0,0.0014]
[1773618573030,0.19948001,72723.0,72706.0,0.0014]
[1773618573335,0.041253,72710.0,72706.0,0.0014]
[1773618573532,0.3253161,72710.0,72706.0,0.0024]
[1773618573922,0.041252,72712.0,72706.0,0.0024]
[1773618574128,0.041252,72713.0,72706.0,0.0024]
[1773618574328,0.1010899,72713.0,72706.0,0.0024]
[1773618574743,0.42103489,72713.0,72706.0,0.0024]
[1773618574929,0.42103489,72713.0,72706.0,0.0014]
[1773618575132,0.34650968,72712.0,72689.0,0.46237391]
[1773618575333,0.041258,72702.0,72691.0,0.041264]
[1773618575641,0.041259,72701.0,72692.0,0.0014]
[1773618575837,0.57528465,72701.0,72693.0,0.0014]
[1773618576032,0.53402565,72701.0,72693.0,0.0014]
[1773618578442,0.53402565,72701.0,72693.0,0.0024]
[1773618578643,0.53402565,72701.0,72693.0,0.043663]
[1773618578941,0.09632017,72701.0,72693.0,0.043663]
[1773618579138,0.041252,72712.0,72694.0,0.46237391]
[1773618579340,0.34650968,72711.0,72700.0,0.041258]
[1773618579536,0.38660174,72711.0,72701.0,0.0014]
[1773618580932,0.83152046,72711.0,72701.0,0.0014]
[1773618581132,0.041254,72708.0,72701.0,0.0014]
[1773618581333,0.37893623,72708.0,72701.0,0.0014]
[1773618581533,0.09912481,72708.0,72701.0,0.0014]
[1773618581739,0.38084163,72708.0,72702.0,0.0014]
[1773618582041,0.38084163,72708.0,72693.0,0.00362]
[1773618582042,0.041255,72707.0,72694.0,0.041262]
[1773618582246,0.45855591,72705.0,72695.0,0.0014]
[1773618582437,0.49981691,72697.0,72677.0,0.76509391]
[1773618582645,0.25989889,72697.0,72685.0,0.041267]
[1773618582845,0.25989889,72697.0,72686.0,0.0014]
[1773618583144,0.041258,72702.0,72687.0,0.0014]
[1773618583348,0.041258,72702.0,72689.0,0.46237391]
[1773618583349,0.34650968,72701.0,72689.0,0.46237391]
[1773618583640,0.04000697,72701.0,72693.0,0.50363591]
[1773618583844,0.041255,72707.0,72693.0,0.50363591]
[1773618584038,0.34650968,72706.0,72693.0,0.50363591]
[1773618584238,0.45855591,72722.0,72694.0,0.46237391]
[1773618584436,0.041251,72714.0,72689.0,0.46237391]
[1773618584636,0.19076476,72714.0,72689.0,0.46237391]
[1773618585239,0.041252,72713.0,72700.0,0.50363191]
[1773618585533,0.06954207,72713.0,72701.0,0.0014]
[1773618586349,0.041252,72712.0,72700.0,0.50363191]
[1773618586648,0.07047594,72712.0,72702.0,0.0014]
[1773618588151,0.07047594,72712.0,72702.0,0.00382]
[1773618588951,0.07047594,72712.0,72702.0,0.00242]
[1773618589151,0.07047594,72712.0,72703.0,0.0014]
[1773618592456,0.02922394,72712.0,72703.0,0.0014]
[1773618592839,0.46348102,72727.0,72703.0,0.44801079]
[1773618593046,0.19937364,72726.0,72703.0,0.44801079]
[1773618593246,0.19937364,72725.0,72703.0,0.44801079]
[1773618593450,0.54531009,72725.0,72703.0,0.44801079]
[1773618593651,0.54531009,72725.0,72714.0,0.04125]
[1773618593953,0.54531009,72725.0,72715.0,0.0014]
[1773618593954,0.041249,72718.0,72715.0,0.0014]
[1773618594254,0.06010541,72718.0,72716.0,0.0014]
[1773618594448,0.041243,72728.0,72717.0,0.0014]
[1773618594648,0.46265453,72728.0,72718.0,0.0014]
[1773618594848,0.46265453,72728.0,72718.0,0.43547116]
[1773618595044,0.17819908,72728.0,72719.0,0.43407116]
[1773618595246,8e-08,72728.0,72724.0,0.47531616]
[1773618595449,0.041238,72738.0,72725.0,0.041244]
[1773618595754,0.041238,72738.0,72726.0,0.0014]
[1773618595755,0.08864462,72731.0,72726.0,0.0014]
[1773618595958,0.041238,72738.0,72726.0,0.43547116]
[1773618596249,0.28447953,72738.0,72726.0,0.47671516]
[1773618596754,0.17018334,72738.0,72728.0,0.47531416]
[1773618596953,0.17018334,72738.0,72728.0,0.43407116]
[1773618597553,0.17018334,72738.0,72729.0,0.041242]
[1773618597854,0.17018334,72738.0,72728.0,0.43407116]
[1773618600449,0.041238,72737.0,72726.0,0.0014]
[1773618600751,0.21959009,72737.0,72726.0,0.0014]
[1773618601549,0.44195654,72736.0,72704.0,0.43407116]
[1773618601751,0.44195654,72719.0,72705.0,0.0014]
[1773618601946,0.56021259,72719.0,72706.0,0.0014]
[1773618602147,0.44195654,72723.0,72707.0,0.0014]
[1773618602449,0.52148373,72723.0,72708.0,0.042654]
[1773618602654,0.08293895,72723.0,72709.0,0.042653]
[1773618602855,0.08293895,72723.0,72709.0,0.0014]
[1773618603043,0.041248,72720.0,72709.0,0.0014]
[1773618603455,0.041248,72720.0,72709.0,0.00502]
[1773618603944,0.49492793,72720.0,72709.0,0.00362]
[1773618604257,0.041249,72718.0,72710.0,0.0014]
[1773618604457,0.041249,72718.0,72709.0,0.00362]
[1773618604458,0.38749206,72718.0,72711.0,0.0014]
[1773618604651,0.38749206,72718.0,72712.0,0.0014]
[1773618605158,0.10003259,72718.0,72712.0,0.0014]
[1773618606057,0.041247,72721.0,72712.0,0.0014]
[1773618606242,0.041248,72720.0,72712.0,0.0014]
[1773618606447,0.09030296,72720.0,72712.0,0.0014]
[1773618606846,0.041248,72720.0,72712.0,0.0014]
[1773618607758,0.09496167,72720.0,72712.0,0.0014]
[1773618607958,0.39547865,72720.0,72712.0,0.0014]
[1773618608157,0.041248,72720.0,72712.0,0.0014]
[1773618608452,0.0014,72742.0,72712.0,0.0014]
[1773618608659,0.44195654,72740.0,72718.0,0.041248]
[1773618608854,0.041242,72731.0,72718.0,0.041248]
[1773618609052,0.041243,72729.0,72719.0,0.0014]
[1773618609250,0.041243,72728.0,72719.0,0.0014]
[1773618609456,0.08532981,72728.0,72719.0,0.0014]
[1773618611258,0.08532981,72728.0,72704.0,0.041256]
[1773618611259,0.041249,72718.0,72704.0,0.041256]
[1773618611460,0.41128791,72718.0,72705.0,0.0014]
[1773618611776,0.41128791,72718.0,72705.0,0.042656]
[1773618612456,0.37003891,72718.0,72706.0,0.041255]
[1773618612860,0.041249,72717.0,72705.0,0.0014]
[1773618613057,0.52923225,72717.0,72706.0,0.0014]
[1773618613563,0.48798325,72717.0,72706.0,0.0024]
[1773618613860,0.44195654,72712.0,72692.0,0.041263]
[1773618614068,0.44195654,72712.0,72669.0,0.30268]
[1773618614069,0.44195654,72711.0,72694.0,0.0014]
[1773618614364,0.44195654,72710.0,72684.0,0.041267]
[1773618614563,0.44195654,72709.0,72685.0,0.0014]
[1773618614758,0.44195654,72709.0,72671.0,0.41203486]
[1773618614759,0.44195654,72701.0,72671.0,0.41203486]
[1773618614947,0.44195654,72691.0,72682.0,0.0014]
[1773618615148,0.00015066,72690.0,72683.0,0.0014]
[1773618615351,0.07848689,72690.0,72684.0,0.0014]
[1773618615549,0.487892,72690.0,72685.0,0.0014]
[1773618615758,0.041266,72688.0,72686.0,0.0014]
[1773618615961,0.52701044,72688.0,72672.0,0.041274]
[1773618616260,0.48322154,72690.0,72675.0,0.041273]
[1773618616461,0.8781677,72690.0,72676.0,0.0014]
[1773618616660,0.8781677,72690.0,72677.0,0.0014]
[1773618616864,0.8781677,72690.0,72686.0,0.001]
[1773618617057,0.39494616,72690.0,72687.0,0.0014]
[1773618617251,0.44195654,72695.0,72663.0,0.30268]
[1773618617252,0.041262,72695.0,72688.0,0.0014]
[1773618617452,0.041262,72695.0,72689.0,0.0014]
[1773618617663,0.12264782,72695.0,72690.0,0.0014]
[1773618617963,0.041263,72693.0,72691.0,0.0014]
[1773618618158,0.041263,72693.0,72692.0,0.0014]
[1773618618363,0.041262,72695.0,72692.0,0.0014]
[1773618618665,0.48321654,72698.0,72693.0,0.0014]
[1773618618863,0.44195654,72692.0,72678.0,0.041271]
[1773618619165,0.44195654,72692.0,72679.0,0.0014]
[1773618619556,0.041263,72693.0,72679.0,0.0014]
[1773618619866,0.54168834,72693.0,72680.0,0.0014]
[1773618620068,0.041264,72692.0,72680.0,0.0014]
[1773618620365,0.3780891,72692.0,72680.0,0.0014]
[1773618620575,0.041264,72691.0,72680.0,0.0014]
[1773618620869,0.16167143,72691.0,72680.0,0.0014]
[1773618621457,0.44195654,72684.0,72681.0,0.0014]
[1773618621762,0.44195654,72683.0,72682.0,0.0014]
[1773618622064,0.78059028,72683.0,72671.0,0.039055]
[1773618622362,0.041266,72688.0,72673.0,0.041274]
[1773618622564,0.041267,72687.0,72674.0,0.0014]
[1773618622751,0.041267,72686.0,72674.0,0.0014]
[1773618622949,0.21435175,72686.0,72675.0,0.0014]
[1773618623155,0.96173691,72686.0,72676.0,0.0014]
[1773618623357,0.18858349,72686.0,72677.0,0.0014]
[1773618623562,0.14451649,72686.0,72678.0,0.041271]
[1773618623750,0.13626715,72686.0,72680.0,0.04127]
[1773618623954,0.13626715,72686.0,72677.0,0.042671]
[1773618624264,0.13626715,72686.0,72677.0,0.0014]
[1773618624464,0.13626715,72686.0,72669.0,0.45231863]
[1773618624665,0.13626715,72686.0,72671.0,0.45231863]
[1773618624849,0.13626715,72686.0,72677.0,0.041271]
[1773618625053,0.13626715,72686.0,72678.0,0.0014]
[1773618625259,0.13626715,72686.0,72678.0,0.042671]
[1773618626168,0.13626715,72686.0,72678.0,0.0014]
[1773618626358,0.13626715,72686.0,72676.0,0.041272]
[1773618626552,0.13626715,72686.0,72674.0,0.041273]
[1773618626757,0.13626715,72686.0,72675.0,0.0014]
[1773618626957,0.13626715,72686.0,72676.0,0.0014]
[1773618627265,0.47476077,72686.0,72666.0,0.30276]
[1773618627560,0.041274,72674.0,72667.0,0.0014]
[1773618627764,0.4116147,72674.0,72668.0,0.0014]
[1773618627967,0.43177494,72673.0,72669.0,0.0014]
[1773618628156,0.84984163,72673.0,72662.0,0.04128]
[1773618628356,0.84984163,72673.0,72663.0,0.0014]
[1773618628965,0.84984163,72673.0,72663.0,0.042679]
[1773618629470,0.84984163,72673.0,72510.0,0.0688]
[1773618629471,0.43177494,72672.0,72651.0,0.30276]
[1773618629666,0.43177494,72668.0,72645.0,0.45231863]
[1773618629864,0.43177494,72663.0,72651.0,0.0014]
[1773618630058,0.89486884,72663.0,72652.0,0.0014]
[1773618630661,0.89486884,72663.0,72640.0,0.45231863]
[1773618630866,0.4630939,72663.0,72653.0,0.042685]
[1773618631356,0.4630939,72663.0,72645.0,0.45231863]
[1773618631357,0.43177494,72662.0,72654.0,0.0014]
[1773618631564,0.43177494,72666.0,72654.0,0.00095705]
[1773618631766,0.56369624,72666.0,72654.0,0.00095705]
[1773618632565,0.56369624,72666.0,72653.0,0.041285]
[1773618632566,0.43177494,72665.0,72655.0,0.0014]
[1773618632868,0.43177494,72664.0,72656.0,0.0014]
[1773618633068,0.46952615,72664.0,72656.0,0.0014]
[1773618633366,0.03682925,72664.0,72656.0,0.0014]
[1773618635270,2.5e-07,72664.0,72656.0,0.0014]
[1773618635464,0.041274,72674.0,72656.0,0.0014]
[1773618635770,0.43177494,72666.0,72657.0,0.0014]
[1773618635971,0.43177494,72665.0,72657.0,0.0014]
[1773618636172,0.84696777,72665.0,72657.0,0.0014]
[1773618636769,0.00010477,72664.0,72657.0,0.0014]
[1773618637069,0.39272742,72664.0,72657.0,0.0014]
[1773618637270,0.00010477,72664.0,72657.0,0.0014]
[1773618637470,0.07253188,72664.0,72657.0,0.0014]
[1773618639568,0.03897785,72664.0,72657.0,0.0014]
[1773618639881,0.47305794,72658.0,72644.0,0.04129]
[1773618640066,0.43177494,72656.0,72635.0,0.45231863]
[1773618640265,9.6e-07,72656.0,72654.0,0.041285]
[1773618640468,0.47305094,72670.0,72656.0,0.041283]
[1773618640667,0.47305094,72670.0,72657.0,0.0014]
[1773618640668,0.43177494,72668.0,72657.0,0.0014]
[1773618640867,0.43177494,72668.0,72658.0,0.0014]
[1773618641067,7.252e-05,72669.0,72658.0,0.0014]
[1773618641274,7.252e-05,72669.0,72662.0,0.04128]
[1773618641666,7.252e-05,72669.0,72663.0,0.041279]
[1773618641879,0.47304294,72685.0,72670.0,0.041276]
[1773618642065,0.47304294,72685.0,72671.0,0.0014]
[1773618642564,0.47304294,72685.0,72671.0,0.042675]
[1773618642964,0.47304294,72684.0,72671.0,0.0014]
[1773618643274,0.47304394,72683.0,72671.0,0.00071167]
[1773618646383,0.43177494,72691.0,72673.0,0.00825992]
[1773618646678,0.43177494,72681.0,72668.0,0.041277]
[1773618646869,0.43177494,72681.0,72669.0,0.041276]
[1773618647072,0.43177494,72681.0,72670.0,0.0014]
[1773618647378,0.43177494,72678.0,72654.0,0.45231863]
[1773618647676,0.43177494,72676.0,72663.0,0.04128]
[1773618648069,0.43177494,72676.0,72664.0,0.042679]
[1773618648269,0.43177494,72676.0,72665.0,0.0014]
[1773618648477,0.43177494,72676.0,72666.0,0.0014]
[1773618648977,0.43177494,72676.0,72667.0,0.0014]
[1773618649371,0.43177494,72683.0,72653.0,0.45231863]
[1773618649572,0.041269,72682.0,72668.0,0.041276]
[1773618649871,0.041269,72682.0,72669.0,0.0014]
[1773618650181,0.47304394,72682.0,72669.0,0.0014]
[1773618650384,0.041271,72680.0,72669.0,0.0014]
[1773618650573,0.9759523,72680.0,72669.0,0.0014]
[1773618650968,0.9346813,72680.0,72670.0,0.041275]
[1773618651978,0.9346813,72680.0,72658.0,0.45231863]
[1773618652168,0.041278,72667.0,72639.0,0.44754464]
[1773618652373,0.51169287,72667.0,72641.0,0.44754464]
[1773618652576,0.51169287,72667.0,72654.0,0.041285]
[1773618652780,0.93005551,72667.0,72655.0,0.0014]
[1773618652983,0.45964164,72666.0,72655.0,0.0014]
[1773618653179,0.47953351,72662.0,72656.0,0.0014]
[1773618653381,0.47953351,72662.0,72638.0,0.41762496]
[1773618653382,0.43825251,72659.0,72632.0,0.41762496]
[1773618653568,0.43825251,72658.0,72647.0,0.041289]
[1773618653770,0.43825251,72657.0,72648.0,0.042688]
[1773618653983,0.87475638,72657.0,72648.0,0.041288]
[1773618654183,0.87475638,72657.0,72649.0,0.0028]
[1773618655280,0.87475638,72657.0,72649.0,0.042687]
[1773618655588,0.08605199,72657.0,72650.0,0.0014]
[1773618655774,0.0781774,72657.0,72650.0,0.0014]
[1773618655968,0.14497927,72657.0,72650.0,0.0014]
[1773618656779,0.43825251,72666.0,72650.0,0.0014]
[1773618656980,0.15150665,72666.0,72650.0,0.41902496]
[1773618657388,0.15150665,72666.0,72658.0,0.041282]
[1773618657571,0.15150665,72666.0,72659.0,0.0014]
[1773618658587,0.58975916,72666.0,72660.0,0.0014]
[1773618658785,0.43825251,72665.0,72661.0,0.0014]
[1773618658969,0.43825251,72665.0,72638.0,0.41762496]
[1773618658970,0.43825251,72659.0,72638.0,0.41762496]
[1773618659170,0.43825251,72658.0,72647.0,0.041289]
[1773618659376,0.43825251,72657.0,72634.0,0.13967235]
[1773618659582,0.43825251,72656.0,72635.0,0.0014]
[1773618659886,0.12350402,72656.0,72647.0,0.041289]
[1773618660085,0.51406797,72656.0,72648.0,0.0014]
[1773618660786,0.43825251,72655.0,72649.0,0.0014]
[1773618661084,0.43825251,72650.0,72631.0,0.00068841]
[1773618661385,0.43825251,72647.0,72634.0,0.041296]
[1773618661581,0.49554105,72647.0,72635.0,0.02151679]
[1773618661780,0.43825251,72651.0,72636.0,0.02151679]
[1773618661981,0.43825251,72650.0,72639.0,0.041293]
[1773618662183,0.97308662,72650.0,72637.0,0.042694]
[1773618662376,0.43825251,72649.0,72637.0,0.042694]
[1773618662573,0.43825251,72648.0,72638.0,0.0014]
[1773618662779,0.88388971,72648.0,72639.0,0.0014]
[1773618663192,0.43825251,72647.0,72639.0,0.0014]
[1773618663393,0.90887374,72647.0,72639.0,0.0014]
[1773618663589,0.90887374,72647.0,72640.0,0.02291882]
[1773618663892,0.47062123,72647.0,72641.0,0.02291882]
[1773618664082,0.47062123,72647.0,72642.0,0.02291882]
[1773618664283,0.90887374,72647.0,72643.0,0.0014]
[1773618664483,0.90887374,72647.0,72644.0,0.0014]
[1773618664991,0.43825251,72646.0,72645.0,0.0014]
[1773618665186,0.92522073,72646.0,72645.0,0.0014]
[1773618665488,0.91962072,72646.0,72645.0,0.0014]
[1773618665686,0.91962072,72646.0,72638.0,0.041294]
[1773618665997,0.43825251,72645.0,72639.0,0.02291777]
[1773618666292,0.43825251,72633.0,72620.0,0.041304]
[1773618666590,0.43825251,72629.0,72606.0,0.14015299]
[1773618666786,0.43825251,72628.0,72607.0,0.0014]
[1773618666986,0.43825251,72627.0,72604.0,0.41762496]
[1773618667189,0.43825251,72626.0,72615.0,0.041307]
[1773618667386,0.88279976,72626.0,72616.0,0.042706]
[1773618667587,0.43837229,72625.0,72603.0,0.13786586]
[1773618667893,0.07335278,72625.0,72617.0,0.041305]
[1773618668082,0.07335278,72625.0,72618.0,0.042705]
[1773618668283,0.07335278,72625.0,72604.0,0.001]
[1773618668284,0.43825251,72624.0,72604.0,0.001]
[1773618668491,0.08754532,72624.0,72606.0,0.41762496]
[1773618668698,0.43825251,72623.0,72605.0,0.0014]
[1773618668882,0.43825251,72622.0,72604.0,0.001]
[1773618669084,0.43825251,72621.0,72611.0,0.041309]
[1773618669292,0.92947481,72621.0,72612.0,0.042708]
[1773618669491,0.92947481,72621.0,72612.0,0.041308]
[1773618669693,0.92947481,72621.0,72613.0,0.0014]
[1773618670492,0.43965251,72637.0,72613.0,0.41902496]
[1773618670695,0.54145342,72637.0,72623.0,0.041302]
[1773618670995,0.54145342,72637.0,72613.0,0.41902496]
[1773618670996,0.47954851,72636.0,72624.0,0.0014]
[1773618671196,0.43825251,72635.0,72625.0,0.0014]
[1773618671396,0.94451681,72635.0,72626.0,0.0014]
[1773618671583,0.43825251,72634.0,72626.0,0.0014]
[1773618671789,0.43825251,72633.0,72627.0,0.0014]
[1773618671985,0.43825251,72632.0,72628.0,0.0014]
[1773618672294,0.15458155,72632.0,72629.0,0.0014]
[1773618672490,0.52694238,72632.0,72630.0,0.0014]
[1773618672692,0.52694238,72632.0,72631.0,0.0014]
[1773618672693,0.96519489,72632.0,72631.0,0.0014]
[1773618672997,0.13321233,72632.0,72625.0,0.0014]
[1773618673299,0.13321233,72632.0,72624.0,0.041302]
[1773618673300,0.51725864,72632.0,72626.0,0.0014]
[1773618673810,0.53278255,72632.0,72626.0,0.0014]
[1773618674090,0.43825251,72631.0,72627.0,0.0014]
[1773618674290,0.43825251,72631.0,72609.0,0.55667855]
[1773618674291,0.43825251,72630.0,72621.0,0.041304]
[1773618674499,0.92768997,72630.0,72622.0,0.042703]
[1773618674997,0.92768997,72630.0,72623.0,0.041302]
[1773618675488,0.43825251,72629.0,72622.0,0.0014]
[1773618675689,0.43825251,72628.0,72622.0,0.0014]
[1773618675889,0.92283593,72628.0,72622.0,0.0014]
[1773618676092,0.92283593,72628.0,72609.0,0.55667855]
[1773618676093,0.43825251,72627.0,72605.0,0.41762496]
[1773618676293,0.43825251,72625.0,72606.0,0.0014]
[1773618676592,0.43825251,72624.0,72607.0,0.0014]
[1773618676899,0.08316424,72624.0,72615.0,0.041307]
[1773618677088,0.08316424,72624.0,72616.0,0.0014]
[1773618677298,0.44737022,72624.0,72616.0,0.0014]
[1773618677488,0.43825251,72623.0,72594.0,0.41762496]
[1773618677695,0.43825251,72622.0,72596.0,0.41762496]
[1773618677904,0.43825251,72622.0,72583.0,9.683e-05]
[1773618677905,0.43825251,72620.0,72598.0,0.041316]
[1773618678091,0.43825251,72613.0,72599.0,0.0014]
[1773618678403,0.43825251,72612.0,72600.0,0.02292613]
[1773618678605,0.43825251,72611.0,72602.0,0.041314]
[1773618678806,0.89489738,72611.0,72603.0,0.02292613]
[1773618678992,0.89489738,72611.0,72583.0,0.30309683]
[1773618678993,0.04838694,72611.0,72604.0,0.0014]
[1773618679191,0.04838694,72611.0,72594.0,0.41762496]
[1773618679192,0.08961714,72611.0,72605.0,0.0014]
[1773618679499,0.43825251,72628.0,72606.0,0.41902496]
[1773618679694,0.43825251,72626.0,72615.0,0.041307]
[1773618679893,0.97669518,72626.0,72616.0,0.0014]
[1773618680102,0.97669518,72626.0,72617.0,0.0014]
[1773618680598,0.53844267,72626.0,72617.0,0.0014]
[1773618680996,0.53844267,72626.0,72617.0,0.042706]
[1773618681204,0.53844267,72626.0,72617.0,0.0014]
[1773618681604,0.47955451,72624.0,72618.0,0.0014]
[1773618681902,0.47955551,72623.0,72596.0,0.41762496]
[1773618682104,0.43916143,72622.0,72610.0,0.04131]
[1773618682304,0.47993972,72622.0,72611.0,0.02292466]
[1773618682506,0.48046543,72621.0,72612.0,0.0014]
[1773618682704,0.43916143,72620.0,72613.0,0.0014]
[1773618682905,0.43916143,72619.0,72595.0,0.13672843]
[1773618683094,0.43916143,72618.0,72606.0,0.0028]
[1773618683288,0.4902452,72618.0,72607.0,0.0014]
[1773618683505,0.43916143,72617.0,72607.0,0.0014]
[1773618683706,0.97160988,72617.0,72609.0,0.04131]
[1773618684824,0.64009003,72617.0,72609.0,0.04131]
[1773618685010,0.98765274,72617.0,72609.0,0.04131]
[1773618685198,0.43916143,72616.0,72607.0,0.0014]
[1773618685398,0.43916143,72615.0,72608.0,0.041311]
[1773618685602,0.62296098,72615.0,72608.0,0.041311]
[1773618685906,0.55226788,72615.0,72608.0,0.041311]
[1773618686205,0.43916143,72614.0,72609.0,0.0014]
[1773618686395,0.10728641,72614.0,72610.0,0.04271]
[1773618686596,0.10728641,72614.0,72611.0,0.0014]
[1773618686791,0.52850402,72614.0,72607.0,0.041311]
[1773618686992,0.52850402,72614.0,72608.0,0.0014]
[1773618687301,0.43916143,72613.0,72589.0,0.44408017]
[1773618687612,0.43916143,72612.0,72590.0,0.44548017]
[1773618687794,0.43916143,72611.0,72590.0,0.44408017]
[1773618688000,0.43916143,72610.0,72591.0,0.0014]
[1773618688308,0.43916143,72610.0,72583.0,9.683e-05]
[1773618688309,0.43916143,72609.0,72584.0,0.44408017]
[1773618688606,0.43916143,72608.0,72584.0,0.44408017]
[1773618688910,0.43916143,72605.0,72591.0,0.04132]
[1773618689209,0.43916143,72604.0,72593.0,0.04132]
[1773618689505,0.43916143,72603.0,72594.0,0.0014]
[1773618689708,0.43916143,72602.0,72595.0,0.0014]
[1773618689897,0.43916143,72601.0,72596.0,0.0014]
[1773618690096,0.43916143,72601.0,72583.0,9.683e-05]
[1773618690097,0.43916143,72600.0,72587.0,0.041323]
[1773618690311,0.43916143,72597.0,72588.0,0.0014]
[1773618690514,0.43916143,72596.0,72581.0,0.04201489]
[1773618690805,0.43916143,72595.0,72584.0,0.041324]